[Event "Titled Tuesday Blitz May 31 Late 2022"]
[White "Bluebaum, Matthias"]
[Black "Andreikin, Dmitry"]
[WhiteFideId "24651516"]
[BlackFideId "4158814"]
[WhiteElo "2556"]
[BlackElo "2736"]
[Result "0-1"]
[Round "06"]
[TimeControl "180+1"]
[Date "2022.05.31"]
[WhiteClock "0:00:02"]
[BlackClock "0:01:06"]

1. d4 {[%clk 0:03:00]}  Nf6 {[%clk 0:02:59]} 2. c4 {[%clk 0:03:01]}  e6 {[%clk 0:02:59]} 3. Nc3 {[%clk 0:03:02]}  d5 {[%clk 0:02:57]} 4. cxd5 {[%clk 0:03:02]}  exd5 {[%clk 0:02:58]} 5. Bg5 {[%clk 0:03:02]}  c6 {[%clk 0:02:57]} 6. e3 {[%clk 0:03:03]}  Bf5 {[%clk 0:02:57]} 7. Qf3 {[%clk 0:03:03]}  Bg6 {[%clk 0:02:58]} 8. Bxf6 {[%clk 0:03:04]}  Qxf6 {[%clk 0:02:58]} 9. Qxf6 {[%clk 0:03:04]}  gxf6 {[%clk 0:02:59]} 10. h4 {[%clk 0:03:03]}  Nd7 {[%clk 0:02:58]} 11. h5 {[%clk 0:03:03]}  Bf5 {[%clk 0:02:58]} 12. Nge2 {[%clk 0:02:48]}  Rg8 {[%clk 0:02:56]} 13. f4 {[%clk 0:02:45]}  Be6 {[%clk 0:02:51]} 14. Kf2 {[%clk 0:02:45]}  f5 {[%clk 0:02:51]} 15. Ng3 {[%clk 0:02:10]}  Nf6 {[%clk 0:02:50]} 16. Bd3 {[%clk 0:02:10]}  Ne4+ {[%clk 0:02:41]} 17. Ngxe4 {[%clk 0:02:04]}  fxe4 {[%clk 0:02:42]} 18. Be2 {[%clk 0:02:05]}  f5 {[%clk 0:02:39]} 19. g4 {[%clk 0:01:49]}  fxg4 {[%clk 0:02:38]} 20. Kg3 {[%clk 0:01:50]}  Be7 {[%clk 0:02:34]} 21. Nd1 {[%clk 0:01:50]}  c5 {[%clk 0:02:27]} 22. dxc5 {[%clk 0:01:45]}  Bxc5 {[%clk 0:02:28]} 23. Rc1 {[%clk 0:01:45]}  Rc8 {[%clk 0:02:23]} 24. Rc3 {[%clk 0:01:29]}  Ke7 {[%clk 0:02:04]} 25. Nf2 {[%clk 0:01:27]}  d4 {[%clk 0:02:03]} 26. exd4 {[%clk 0:01:24]}  Bxd4 {[%clk 0:02:04]} 27. Rxc8 {[%clk 0:01:17]}  Bxf2+ {[%clk 0:02:03]} 28. Kxf2 {[%clk 0:01:18]}  Rxc8 {[%clk 0:02:02]} 29. Kg3 {[%clk 0:01:04]}  Rc2 {[%clk 0:01:54]} 30. Bxg4 {[%clk 0:01:04]}  Rxb2 {[%clk 0:01:50]} 31. Re1 {[%clk 0:01:00]}  Bxg4 {[%clk 0:01:46]} 32. Kxg4 {[%clk 0:01:01]}  Kf6 {[%clk 0:01:42]} 33. Rxe4 {[%clk 0:00:49]}  Rg2+ {[%clk 0:01:39]} 34. Kf3 {[%clk 0:00:48]}  Rxa2 {[%clk 0:01:40]} 35. Re8 {[%clk 0:00:44]}  a5 {[%clk 0:01:33]} 36. Rc8 {[%clk 0:00:25]}  a4 {[%clk 0:01:26]} 37. Rc7 {[%clk 0:00:25]}  Rb2 {[%clk 0:01:26]} 38. Rxh7 {[%clk 0:00:25]}  a3 {[%clk 0:01:27]} 39. Rh8 {[%clk 0:00:26]}  a2 {[%clk 0:01:24]} 40. Ra8 {[%clk 0:00:26]}  b5 {[%clk 0:01:24]} 41. Kg4 {[%clk 0:00:23]}  b4 {[%clk 0:01:21]} 42. Ra6+ {[%clk 0:00:15]}  Ke7 {[%clk 0:01:13]} 43. Kf5 {[%clk 0:00:02]}  b3 {[%clk 0:01:12]} 44. h6 {[%clk 0:00:02]}  Rh2 {[%clk 0:01:10]} 45. Ra7+ {[%clk 0:00:02]}  Kd6 {[%clk 0:01:10]} 46. Kg6 {[%clk 0:00:02]}  b2 {[%clk 0:01:08]} 47. f5 {[%clk 0:00:03]}  b1=Q {[%clk 0:01:07]} 48. Ra6+ {[%clk 0:00:03]}  Kc5 {[%clk 0:01:07]} 49. Re6 {[%clk 0:00:03]}  a1=Q {[%clk 0:01:06]} 50. Re5+ {[%clk 0:00:02]} 0-1


[Site "https://www.chess.com"]

[Event "Titled Tuesday Blitz May 31 Late 2022"]
[White "Chigaev, Maksim"]
[Black "Kosteniuk, Alexandra"]
[WhiteFideId "4108116"]
[BlackFideId "4128125"]
[WhiteElo "2457"]
[BlackElo "2469"]
[Result "1/2-1/2"]
[Round "06"]
[TimeControl "180+1"]
[Date "2022.05.31"]
[WhiteClock "0:00:11"]
[BlackClock "0:01:02"]

1. Nf3 {[%clk 0:03:00]}  Nf6 {[%clk 0:02:59]} 2. c4 {[%clk 0:02:58]}  e6 {[%clk 0:02:59]} 3. g3 {[%clk 0:02:58]}  d5 {[%clk 0:02:59]} 4. b3 {[%clk 0:02:58]}  b6 {[%clk 0:02:59]} 5. Bg2 {[%clk 0:02:58]}  Bb7 {[%clk 0:02:59]} 6. O-O {[%clk 0:02:59]}  Be7 {[%clk 0:02:59]} 7. Bb2 {[%clk 0:02:57]}  O-O {[%clk 0:02:59]} 8. d4 {[%clk 0:02:57]}  c5 {[%clk 0:02:59]} 9. dxc5 {[%clk 0:02:53]}  Bxc5 {[%clk 0:02:49]} 10. Nbd2 {[%clk 0:02:52]}  Nbd7 {[%clk 0:02:43]} 11. a3 {[%clk 0:02:47]}  a5 {[%clk 0:02:42]} 12. Rc1 {[%clk 0:02:47]}  Qe7 {[%clk 0:02:41]} 13. cxd5 {[%clk 0:02:46]}  exd5 {[%clk 0:02:38]} 14. Nd4 {[%clk 0:02:46]}  Rfe8 {[%clk 0:02:24]} 15. N2f3 {[%clk 0:01:31]}  Bxa3 {[%clk 0:01:58]} 16. Bxa3 {[%clk 0:01:31]}  Qxa3 {[%clk 0:01:57]} 17. Nb5 {[%clk 0:01:31]}  Qe7 {[%clk 0:01:48]} 18. Nc7 {[%clk 0:01:30]}  Ba6 {[%clk 0:01:48]} 19. Nd4 {[%clk 0:01:27]}  Nc5 {[%clk 0:01:43]} 20. Nxa8 {[%clk 0:01:22]}  Rxa8 {[%clk 0:01:43]} 21. Re1 {[%clk 0:01:22]}  Nfe4 {[%clk 0:01:42]} 22. f3 {[%clk 0:01:04]}  Nf6 {[%clk 0:01:34]} 23. Qd2 {[%clk 0:01:03]}  Re8 {[%clk 0:01:29]} 24. Bf1 {[%clk 0:00:59]}  g6 {[%clk 0:01:23]} 25. e3 {[%clk 0:00:59]}  Bxf1 {[%clk 0:01:19]} 26. Kxf1 {[%clk 0:01:00]}  Nfd7 {[%clk 0:01:17]} 27. Kg2 {[%clk 0:00:59]}  Ne5 {[%clk 0:01:17]} 28. Rc3 {[%clk 0:00:58]}  Qf6 {[%clk 0:01:13]} 29. Rf1 {[%clk 0:00:58]}  h5 {[%clk 0:01:12]} 30. h4 {[%clk 0:00:58]}  a4 {[%clk 0:01:06]} 31. bxa4 {[%clk 0:00:36]}  Nc4 {[%clk 0:01:06]} 32. Qf2 {[%clk 0:00:08]}  Nxa4 {[%clk 0:01:05]} 33. Rb3 {[%clk 0:00:09]}  Nc5 {[%clk 0:01:05]} 34. Rc3 {[%clk 0:00:10]}  Na4 {[%clk 0:01:05]} 35. Rb3 {[%clk 0:00:10]}  Nc5 {[%clk 0:01:05]} 36. Rc3 {[%clk 0:00:11]}  Na4 {[%clk 0:01:02]} 1/2-1/2


[Site "https://www.chess.com"]

[Event "Titled Tuesday Blitz May 31 Late 2022"]
[White "Darini, Pouria"]
[Black "Matlakov, Maxim"]
[WhiteFideId "12502200"]
[BlackFideId "4168003"]
[WhiteElo "2483"]
[BlackElo "2669"]
[Result "0-1"]
[Round "06"]
[TimeControl "180+1"]
[Date "2022.05.31"]
[WhiteClock "0:00:07"]
[BlackClock "0:00:13"]

1. b3 {[%clk 0:03:00]}  b6 {[%clk 0:02:59]} 2. Bb2 {[%clk 0:03:01]}  Bb7 {[%clk 0:03:00]} 3. Nf3 {[%clk 0:03:01]}  Nf6 {[%clk 0:03:00]} 4. e3 {[%clk 0:03:02]}  e6 {[%clk 0:03:00]} 5. Be2 {[%clk 0:03:02]}  Be7 {[%clk 0:03:00]} 6. O-O {[%clk 0:03:03]}  O-O {[%clk 0:03:01]} 7. d4 {[%clk 0:03:04]}  d5 {[%clk 0:03:01]} 8. Nbd2 {[%clk 0:03:05]}  Nbd7 {[%clk 0:03:01]} 9. c4 {[%clk 0:03:05]}  c5 {[%clk 0:03:02]} 10. Rc1 {[%clk 0:03:06]}  Rc8 {[%clk 0:03:02]} 11. Re1 {[%clk 0:03:06]}  h6 {[%clk 0:03:02]} 12. a3 {[%clk 0:03:06]}  a6 {[%clk 0:03:01]} 13. h3 {[%clk 0:03:04]}  cxd4 {[%clk 0:03:01]} 14. Nxd4 {[%clk 0:03:04]}  dxc4 {[%clk 0:02:53]} 15. Nxc4 {[%clk 0:03:03]}  b5 {[%clk 0:02:54]} 16. Nd2 {[%clk 0:03:01]}  Qb6 {[%clk 0:02:53]} 17. Bf3 {[%clk 0:02:48]}  Nc5 {[%clk 0:02:51]} 18. Bxb7 {[%clk 0:02:46]}  Qxb7 {[%clk 0:02:52]} 19. Qe2 {[%clk 0:02:45]}  Rfd8 {[%clk 0:02:50]} 20. Red1 {[%clk 0:02:39]}  Nd5 {[%clk 0:02:47]} 21. N4f3 {[%clk 0:01:35]}  a5 {[%clk 0:02:31]} 22. Rc2 {[%clk 0:01:10]}  b4 {[%clk 0:02:29]} 23. Rdc1 {[%clk 0:01:05]}  Nd7 {[%clk 0:01:24]} 24. a4 {[%clk 0:00:51]}  Bf6 {[%clk 0:01:09]} 25. Bxf6 {[%clk 0:00:26]}  Rxc2 {[%clk 0:01:08]} 26. Rxc2 {[%clk 0:00:25]}  N7xf6 {[%clk 0:01:09]} 27. Qb5 {[%clk 0:00:13]}  Qxb5 {[%clk 0:00:59]} 28. axb5 {[%clk 0:00:14]}  Nc3 {[%clk 0:01:00]} 29. Nd4 {[%clk 0:00:14]}  Rb8 {[%clk 0:00:58]} 30. Nc4 {[%clk 0:00:13]}  Nxb5 {[%clk 0:00:44]} 31. Nc6 {[%clk 0:00:13]}  Ra8 {[%clk 0:00:37]} 32. N4xa5 {[%clk 0:00:13]}  Nd5 {[%clk 0:00:35]} 33. e4 {[%clk 0:00:11]}  Ndc3 {[%clk 0:00:34]} 34. f3 {[%clk 0:00:11]}  e5 {[%clk 0:00:32]} 35. Nc4 {[%clk 0:00:09]}  Nd4 {[%clk 0:00:32]} 36. Nxd4 {[%clk 0:00:07]}  exd4 {[%clk 0:00:33]} 37. Rd2 {[%clk 0:00:08]}  Ra3 {[%clk 0:00:26]} 38. Kf2 {[%clk 0:00:04]}  Rxb3 {[%clk 0:00:24]} 39. Rxd4 {[%clk 0:00:04]}  Rb1 {[%clk 0:00:24]} 40. Rd8+ {[%clk 0:00:04]}  Kh7 {[%clk 0:00:24]} 41. Rd2 {[%clk 0:00:05]}  b3 {[%clk 0:00:23]} 42. Kg3 {[%clk 0:00:05]}  Rc1 {[%clk 0:00:21]} 43. Nb2 {[%clk 0:00:02]}  Rc2 {[%clk 0:00:21]} 44. Nc4 {[%clk 0:00:02]}  Rxd2 {[%clk 0:00:20]} 45. Nxd2 {[%clk 0:00:02]}  b2 {[%clk 0:00:20]} 46. Kf4 {[%clk 0:00:03]}  b1=Q {[%clk 0:00:20]} 47. Nxb1 {[%clk 0:00:04]}  Nxb1 {[%clk 0:00:20]} 48. Ke5 {[%clk 0:00:05]}  Nc3 {[%clk 0:00:20]} 49. Kd4 {[%clk 0:00:05]}  Ne2+ {[%clk 0:00:19]} 50. Ke3 {[%clk 0:00:05]}  Nc3 {[%clk 0:00:19]} 51. Kd4 {[%clk 0:00:06]}  Nb5+ {[%clk 0:00:18]} 52. Kc5 {[%clk 0:00:06]}  Nc7 {[%clk 0:00:19]} 53. Kd6 {[%clk 0:00:07]}  Ne6 {[%clk 0:00:19]} 54. h4 {[%clk 0:00:07]}  Nf4 {[%clk 0:00:19]} 55. g3 {[%clk 0:00:08]}  Ne2 {[%clk 0:00:19]} 56. g4 {[%clk 0:00:08]}  h5 {[%clk 0:00:19]} 57. gxh5 {[%clk 0:00:05]}  Nf4 {[%clk 0:00:19]} 58. Ke5 {[%clk 0:00:05]}  Nxh5 {[%clk 0:00:18]} 59. f4 {[%clk 0:00:05]}  f6+ {[%clk 0:00:17]} 60. Kf5 {[%clk 0:00:05]}  g6+ {[%clk 0:00:15]} 61. Kg4 {[%clk 0:00:06]}  Ng7 {[%clk 0:00:15]} 62. Kf3 {[%clk 0:00:06]}  f5 {[%clk 0:00:14]} 63. exf5 {[%clk 0:00:04]}  gxf5 {[%clk 0:00:14]} 64. Ke3 {[%clk 0:00:05]}  Kg6 {[%clk 0:00:14]} 65. Kd4 {[%clk 0:00:05]}  Kh5 {[%clk 0:00:13]} 66. Ke5 {[%clk 0:00:06]}  Kxh4 {[%clk 0:00:13]} 67. Kf6 {[%clk 0:00:07]}  Kg4 {[%clk 0:00:13]} 0-1


[Site "https://www.chess.com"]

[Event "Titled Tuesday Blitz May 31 Late 2022"]
[White "Diaz Rosas, Julio Cesar"]
[Black "Rosen, Eric"]
[WhiteFideId "5105099"]
[BlackFideId "2032562"]
[WhiteElo "2278"]
[BlackElo "2362"]
[Result "1-0"]
[Round "06"]
[TimeControl "180+1"]
[Date "2022.05.31"]
[WhiteClock "0:00:18"]
[BlackClock "0:00:02"]

1. d4 {[%clk 0:03:00]}  d5 {[%clk 0:02:54]} 2. c4 {[%clk 0:02:59]}  e6 {[%clk 0:02:54]} 3. Nf3 {[%clk 0:02:58]}  Nf6 {[%clk 0:02:54]} 4. g3 {[%clk 0:02:58]}  dxc4 {[%clk 0:02:55]} 5. Bg2 {[%clk 0:02:58]}  Bb4+ {[%clk 0:02:55]} 6. Bd2 {[%clk 0:02:58]}  c5 {[%clk 0:02:56]} 7. O-O {[%clk 0:02:54]}  O-O {[%clk 0:02:56]} 8. a3 {[%clk 0:02:43]}  Bxd2 {[%clk 0:02:55]} 9. Nbxd2 {[%clk 0:02:44]}  cxd4 {[%clk 0:02:56]} 10. Nxc4 {[%clk 0:02:44]}  Nc6 {[%clk 0:02:56]} 11. b4 {[%clk 0:02:43]}  d3 {[%clk 0:02:43]} 12. exd3 {[%clk 0:02:44]}  Nd5 {[%clk 0:02:35]} 13. Qb3 {[%clk 0:02:37]}  b6 {[%clk 0:02:26]} 14. Rfd1 {[%clk 0:02:33]}  Bb7 {[%clk 0:02:26]} 15. d4 {[%clk 0:02:31]}  Nce7 {[%clk 0:02:20]} 16. h4 {[%clk 0:02:29]}  Rc8 {[%clk 0:02:19]} 17. Rac1 {[%clk 0:02:28]}  Rc7 {[%clk 0:02:10]} 18. Nce5 {[%clk 0:02:21]}  Qc8 {[%clk 0:01:55]} 19. Rxc7 {[%clk 0:02:01]}  Qxc7 {[%clk 0:01:55]} 20. h5 {[%clk 0:02:01]}  h6 {[%clk 0:01:49]} 21. Ne1 {[%clk 0:01:51]}  Rc8 {[%clk 0:01:47]} 22. Bf3 {[%clk 0:01:29]}  Qc3 {[%clk 0:01:46]} 23. Qa4 {[%clk 0:01:24]}  a6 {[%clk 0:01:04]} 24. N1d3 {[%clk 0:01:18]}  Qc7 {[%clk 0:00:43]} 25. Rc1 {[%clk 0:01:01]}  Nc3 {[%clk 0:00:43]} 26. Rxc3 {[%clk 0:00:59]}  Qxc3 {[%clk 0:00:28]} 27. Bxb7 {[%clk 0:00:59]}  Rd8 {[%clk 0:00:17]} 28. Qxa6 {[%clk 0:00:48]}  f6 {[%clk 0:00:16]} 29. Qxb6 {[%clk 0:00:41]}  Qxd4 {[%clk 0:00:16]} 30. Qxe6+ {[%clk 0:00:41]}  Kh7 {[%clk 0:00:14]} 31. Nf7 {[%clk 0:00:37]}  Ng8 {[%clk 0:00:03]} 32. Nxd8 {[%clk 0:00:34]}  Qxd8 {[%clk 0:00:03]} 33. Bd5 {[%clk 0:00:32]}  Ne7 {[%clk 0:00:03]} 34. Be4+ {[%clk 0:00:31]}  Kh8 {[%clk 0:00:03]} 35. Nc5 {[%clk 0:00:29]}  Qd1+ {[%clk 0:00:02]} 36. Kg2 {[%clk 0:00:30]}  Qd8 {[%clk 0:00:01]} 37. a4 {[%clk 0:00:26]}  f5 {[%clk 0:00:02]} 38. Bf3 {[%clk 0:00:25]}  Ng8 {[%clk 0:00:01]} 39. Qd7 {[%clk 0:00:23]}  Qf8 {[%clk 0:00:01]} 40. Ne6 {[%clk 0:00:23]}  Qf6 {[%clk 0:00:02]} 41. Nf4 {[%clk 0:00:22]}  Kh7 {[%clk 0:00:01]} 42. a5 {[%clk 0:00:21]}  Ne7 {[%clk 0:00:02]} 43. a6 {[%clk 0:00:20]}  Nc6 {[%clk 0:00:02]} 44. Qxc6 {[%clk 0:00:19]}  Qa1 {[%clk 0:00:02]} 45. Qg6+ {[%clk 0:00:18]}  Kh8 {[%clk 0:00:01]} 46. Qxf5 {[%clk 0:00:18]}  g5 {[%clk 0:00:01]} 47. Qf8+ {[%clk 0:00:18]}  Kh7 {[%clk 0:00:02]} 48. Be4# {[%clk 0:00:18]} 1-0


[Site "https://www.chess.com"]

[Event "Titled Tuesday Blitz May 31 Late 2022"]
[White "Djokic, Mihailo"]
[Black "Leschinsky, Gary"]
[WhiteFideId "976440"]
[BlackFideId "30951321"]
[WhiteElo "2202"]
[BlackElo "1782"]
[Result "1-0"]
[Round "06"]
[TimeControl "180+1"]
[Date "2022.06.01"]
[WhiteClock "0:00:33"]
[BlackClock "0:00:01"]

1. e4 {[%clk 0:03:00]}  c6 {[%clk 0:02:59]} 2. d4 {[%clk 0:03:00]}  d5 {[%clk 0:03:00]} 3. e5 {[%clk 0:03:01]}  Bf5 {[%clk 0:02:59]} 4. h4 {[%clk 0:03:01]}  h5 {[%clk 0:02:58]} 5. Bg5 {[%clk 0:03:02]}  Qb6 {[%clk 0:02:56]} 6. Bd3 {[%clk 0:03:02]}  Bxd3 {[%clk 0:02:53]} 7. Qxd3 {[%clk 0:03:03]}  e6 {[%clk 0:02:52]} 8. Nd2 {[%clk 0:03:03]}  Qa6 {[%clk 0:02:49]} 9. c4 {[%clk 0:03:03]}  Nh6 {[%clk 0:02:45]} 10. Ne2 {[%clk 0:03:01]}  Nf5 {[%clk 0:02:42]} 11. O-O {[%clk 0:02:56]}  Nd7 {[%clk 0:02:42]} 12. Ng3 {[%clk 0:02:54]}  g6 {[%clk 0:02:28]} 13. Nxf5 {[%clk 0:02:54]}  gxf5 {[%clk 0:02:27]} 14. b3 {[%clk 0:02:54]}  Bb4 {[%clk 0:02:22]} 15. Nf3 {[%clk 0:02:53]}  Rc8 {[%clk 0:02:20]} 16. a3 {[%clk 0:02:51]}  Be7 {[%clk 0:02:07]} 17. Bxe7 {[%clk 0:02:51]}  Kxe7 {[%clk 0:02:08]} 18. Rfc1 {[%clk 0:02:41]}  Rhg8 {[%clk 0:02:07]} 19. Ng5 {[%clk 0:02:40]}  c5 {[%clk 0:01:53]} 20. Qf3 {[%clk 0:02:39]}  cxd4 {[%clk 0:01:50]} 21. cxd5 {[%clk 0:02:22]}  Nxe5 {[%clk 0:01:49]} 22. Qxh5 {[%clk 0:02:08]}  d3 {[%clk 0:01:34]} 23. dxe6 {[%clk 0:01:50]}  d2 {[%clk 0:00:51]} 24. Rd1 {[%clk 0:01:24]}  Rh8 {[%clk 0:00:49]} 25. Nh7 {[%clk 0:01:17]}  Rcg8 {[%clk 0:00:14]} 26. exf7 {[%clk 0:01:07]}  Rg7 {[%clk 0:00:13]} 27. Qxf5 {[%clk 0:01:07]}  Nxf7 {[%clk 0:00:05]} 28. Qe4+ {[%clk 0:01:01]}  Qe6 {[%clk 0:00:03]} 29. Qxb7+ {[%clk 0:01:01]}  Ke8 {[%clk 0:00:02]} 30. Qa8+ {[%clk 0:00:57]}  Ke7 {[%clk 0:00:02]} 31. Qxa7+ {[%clk 0:00:58]}  Ke8 {[%clk 0:00:02]} 32. Qb8+ {[%clk 0:00:57]}  Ke7 {[%clk 0:00:03]} 33. Qc7+ {[%clk 0:00:58]}  Ke8 {[%clk 0:00:03]} 34. Ng5 {[%clk 0:00:40]}  Nxg5 {[%clk 0:00:03]} 35. Qxg7 {[%clk 0:00:35]}  Rxh4 {[%clk 0:00:01]} 36. Qxg5 {[%clk 0:00:33]} 1-0


[Site "https://www.chess.com"]

[Event "Titled Tuesday Blitz May 31 Late 2022"]
[White "Drygalov, Andrey"]
[Black "Abarca Gonzalez, Nicolas"]
[WhiteFideId "24171735"]
[BlackFideId "3409422"]
[WhiteElo "2540"]
[BlackElo "2504"]
[Result "0-1"]
[Round "06"]
[TimeControl "180+1"]
[Date "2022.05.31"]
[WhiteClock "0:00:04"]
[BlackClock "0:00:29"]

1. e4 {[%clk 0:02:59]}  c5 {[%clk 0:02:57]} 2. Nf3 {[%clk 0:02:59]}  d6 {[%clk 0:02:55]} 3. d4 {[%clk 0:02:57]}  cxd4 {[%clk 0:02:55]} 4. Nxd4 {[%clk 0:02:57]}  Nf6 {[%clk 0:02:55]} 5. Nc3 {[%clk 0:02:58]}  g6 {[%clk 0:02:51]} 6. Be3 {[%clk 0:02:58]}  Bg7 {[%clk 0:02:50]} 7. f3 {[%clk 0:02:58]}  O-O {[%clk 0:02:45]} 8. Qd2 {[%clk 0:02:58]}  Nc6 {[%clk 0:02:45]} 9. O-O-O {[%clk 0:02:54]}  Nxd4 {[%clk 0:02:43]} 10. Bxd4 {[%clk 0:02:51]}  Be6 {[%clk 0:02:44]} 11. Kb1 {[%clk 0:02:44]}  Qc7 {[%clk 0:02:40]} 12. h4 {[%clk 0:02:44]}  Rfc8 {[%clk 0:02:40]} 13. h5 {[%clk 0:02:41]}  Qa5 {[%clk 0:02:37]} 14. a3 {[%clk 0:02:33]}  Rab8 {[%clk 0:02:34]} 15. g4 {[%clk 0:02:05]}  b5 {[%clk 0:02:31]} 16. hxg6 {[%clk 0:01:56]}  fxg6 {[%clk 0:02:32]} 17. Nd5 {[%clk 0:01:53]}  Qxd2 {[%clk 0:02:30]} 18. Rxd2 {[%clk 0:01:45]}  Bxd5 {[%clk 0:02:20]} 19. exd5 {[%clk 0:01:44]}  a5 {[%clk 0:02:21]} 20. g5 {[%clk 0:01:30]}  Nh5 {[%clk 0:02:19]} 21. Bh3 {[%clk 0:01:30]}  Rc4 {[%clk 0:02:16]} 22. Be6+ {[%clk 0:01:28]}  Kh8 {[%clk 0:02:14]} 23. Bxg7+ {[%clk 0:01:25]}  Kxg7 {[%clk 0:02:15]} 24. Bg4 {[%clk 0:01:25]}  Nf4 {[%clk 0:02:10]} 25. b3 {[%clk 0:01:23]}  Rc5 {[%clk 0:02:08]} 26. Rhd1 {[%clk 0:01:21]}  b4 {[%clk 0:02:04]} 27. axb4 {[%clk 0:01:17]}  axb4 {[%clk 0:02:00]} 28. Kb2 {[%clk 0:01:17]}  Rbb5 {[%clk 0:01:58]} 29. Re1 {[%clk 0:01:15]}  Nxd5 {[%clk 0:01:55]} 30. Be6 {[%clk 0:00:59]}  Nc3 {[%clk 0:01:52]} 31. Bc4 {[%clk 0:00:58]}  Ra5 {[%clk 0:01:45]} 32. Rd4 {[%clk 0:00:30]}  Re5 {[%clk 0:01:36]} 33. Rxe5 {[%clk 0:00:23]}  Rxe5 {[%clk 0:01:34]} 34. Bd3 {[%clk 0:00:22]}  Rxg5 {[%clk 0:01:30]} 35. Rxb4 {[%clk 0:00:22]}  Nd1+ {[%clk 0:01:21]} 36. Kc1 {[%clk 0:00:22]}  Nf2 {[%clk 0:01:22]} 37. Be2 {[%clk 0:00:20]}  h5 {[%clk 0:00:59]} 38. Kd2 {[%clk 0:00:20]}  Rg2 {[%clk 0:00:49]} 39. Ke3 {[%clk 0:00:18]}  Nh1 {[%clk 0:00:45]} 40. Rc4 {[%clk 0:00:15]}  Ng3 {[%clk 0:00:43]} 41. Bd3 {[%clk 0:00:16]}  g5 {[%clk 0:00:41]} 42. b4 {[%clk 0:00:11]}  h4 {[%clk 0:00:39]} 43. b5 {[%clk 0:00:09]}  h3 {[%clk 0:00:37]} 44. Rc7 {[%clk 0:00:09]}  Kf6 {[%clk 0:00:32]} 45. Rc8 {[%clk 0:00:09]}  h2 {[%clk 0:00:30]} 46. Rh8 {[%clk 0:00:08]}  h1=Q {[%clk 0:00:28]} 47. Rxh1 {[%clk 0:00:08]}  Nxh1 {[%clk 0:00:29]} 48. b6 {[%clk 0:00:09]}  Rh2 {[%clk 0:00:29]} 49. b7 {[%clk 0:00:02]}  Rh8 {[%clk 0:00:29]} 50. Be4 {[%clk 0:00:02]}  Rb8 {[%clk 0:00:29]} 51. Bc6 {[%clk 0:00:03]}  e6 {[%clk 0:00:28]} 52. c4 {[%clk 0:00:04]}  Ng3 {[%clk 0:00:27]} 53. Kf2 {[%clk 0:00:04]}  Nf5 {[%clk 0:00:28]} 54. Be4 {[%clk 0:00:05]}  Ne7 {[%clk 0:00:28]} 55. Ke3 {[%clk 0:00:03]}  d5 {[%clk 0:00:28]} 56. cxd5 {[%clk 0:00:04]}  exd5 {[%clk 0:00:29]} 0-1


[Site "https://www.chess.com"]

[Event "Titled Tuesday Blitz May 31 Late 2022"]
[White "Florescu, Codrut-Constantin"]
[Black "Balabayeva, Xeniya"]
[WhiteFideId "1202200"]
[BlackFideId "13719688"]
[WhiteElo "2191"]
[BlackElo "1941"]
[Result "0-1"]
[Round "06"]
[TimeControl "180+1"]
[Date "2022.06.01"]
[WhiteClock "0:00:10"]
[BlackClock "0:00:04"]

1. d4 {[%clk 0:03:00]}  d5 {[%clk 0:02:59]} 2. Nf3 {[%clk 0:03:00]}  Nf6 {[%clk 0:02:57]} 3. c4 {[%clk 0:03:00]}  e6 {[%clk 0:02:56]} 4. Nc3 {[%clk 0:02:59]}  c5 {[%clk 0:02:55]} 5. e3 {[%clk 0:02:59]}  Nc6 {[%clk 0:02:33]} 6. a3 {[%clk 0:02:58]}  dxc4 {[%clk 0:02:31]} 7. Bxc4 {[%clk 0:02:57]}  a6 {[%clk 0:02:30]} 8. O-O {[%clk 0:02:55]}  b5 {[%clk 0:02:27]} 9. Be2 {[%clk 0:02:52]}  Bb7 {[%clk 0:02:23]} 10. dxc5 {[%clk 0:02:52]}  Bxc5 {[%clk 0:02:20]} 11. b4 {[%clk 0:02:48]}  Bd6 {[%clk 0:02:09]} 12. Bb2 {[%clk 0:02:47]}  O-O {[%clk 0:02:08]} 13. Nd2 {[%clk 0:02:45]}  Qc7 {[%clk 0:02:05]} 14. h3 {[%clk 0:02:41]}  Rfd8 {[%clk 0:02:04]} 15. Qc2 {[%clk 0:02:25]}  Ne5 {[%clk 0:01:37]} 16. Rac1 {[%clk 0:02:20]}  Rac8 {[%clk 0:01:36]} 17. Qb1 {[%clk 0:02:13]}  Qb8 {[%clk 0:01:30]} 18. Nce4 {[%clk 0:02:09]}  Be7 {[%clk 0:01:13]} 19. Rxc8 {[%clk 0:02:01]}  Rxc8 {[%clk 0:01:11]} 20. Bd4 {[%clk 0:01:42]}  Nc4 {[%clk 0:00:59]} 21. Bxc4 {[%clk 0:01:19]}  bxc4 {[%clk 0:00:56]} 22. Nxf6+ {[%clk 0:01:16]}  Bxf6 {[%clk 0:00:55]} 23. Bxf6 {[%clk 0:01:15]}  gxf6 {[%clk 0:00:55]} 24. Rc1 {[%clk 0:01:09]}  c3 {[%clk 0:00:53]} 25. Nb3 {[%clk 0:01:09]}  Qe5 {[%clk 0:00:44]} 26. Nc5 {[%clk 0:01:00]}  Bc6 {[%clk 0:00:44]} 27. Qd3 {[%clk 0:00:55]}  Qg5 {[%clk 0:00:38]} 28. g3 {[%clk 0:00:44]}  Qh5 {[%clk 0:00:35]} 29. e4 {[%clk 0:00:27]}  Qxh3 {[%clk 0:00:27]} 30. Rxc3 {[%clk 0:00:26]}  Bb5 {[%clk 0:00:27]} 31. Qf3 {[%clk 0:00:20]}  Rd8 {[%clk 0:00:24]} 32. Rc1 {[%clk 0:00:17]}  Kg7 {[%clk 0:00:23]} 33. Qg2 {[%clk 0:00:17]}  Qxg2+ {[%clk 0:00:23]} 34. Kxg2 {[%clk 0:00:17]}  Rd2 {[%clk 0:00:21]} 35. Rc3 {[%clk 0:00:16]}  Ra2 {[%clk 0:00:14]} 36. g4 {[%clk 0:00:16]}  Kg6 {[%clk 0:00:13]} 37. Kg3 {[%clk 0:00:16]}  Rd2 {[%clk 0:00:09]} 38. f3 {[%clk 0:00:16]}  Be2 {[%clk 0:00:08]} 39. a4 {[%clk 0:00:15]}  Ra2 {[%clk 0:00:06]} 40. a5 {[%clk 0:00:15]}  Bb5 {[%clk 0:00:05]} 41. Rb3 {[%clk 0:00:13]}  Rd2 {[%clk 0:00:05]} 42. Rc3 {[%clk 0:00:13]}  Rd4 {[%clk 0:00:04]} 43. Rb3 {[%clk 0:00:13]}  f5 {[%clk 0:00:04]} 44. gxf5+ {[%clk 0:00:12]}  exf5 {[%clk 0:00:04]} 45. exf5+ {[%clk 0:00:12]}  Kxf5 {[%clk 0:00:05]} 46. Ne4 {[%clk 0:00:12]}  h5 {[%clk 0:00:03]} 47. Rc3 {[%clk 0:00:11]}  Kg6 {[%clk 0:00:03]} 48. Rc5 {[%clk 0:00:10]}  Rxb4 {[%clk 0:00:03]} 49. Rg5+ {[%clk 0:00:10]}  Kh6 {[%clk 0:00:03]} 50. Rf5 {[%clk 0:00:11]}  Bc4 {[%clk 0:00:02]} 51. Rf6+ {[%clk 0:00:10]}  Kg7 {[%clk 0:00:02]} 52. Rf4 {[%clk 0:00:10]}  Be6 {[%clk 0:00:01]} 53. Ng5 {[%clk 0:00:10]}  Rb5 {[%clk 0:00:01]} 54. Nxe6+ {[%clk 0:00:10]}  fxe6 {[%clk 0:00:02]} 55. Rh4 {[%clk 0:00:09]}  Kg6 {[%clk 0:00:03]} 56. Kf4 {[%clk 0:00:10]}  Rxa5 {[%clk 0:00:03]} 57. Ke4 {[%clk 0:00:10]}  Ra4+ {[%clk 0:00:03]} 58. Ke5 {[%clk 0:00:10]}  Rxh4 {[%clk 0:00:04]} 0-1


[Site "https://www.chess.com"]